bitfinex/quotes_ETHUSD_20260225
["timestamp","ask_amount","ask_price","bid_price","bid_amount"]
[1772015682289,0.98413054,1914.5,1914.2,0.00936294]
[1772015683868,0.98413054,1914.5,1914.2,1.31539156]
[1772015684473,2.28870667,1914.9,1914.4,0.00567078]
[1772015684677,0.98313054,1914.8,1914.4,0.00567078]
[1772015686779,0.98313054,1914.8,1914.5,0.00420094]
[1772015687987,0.98313054,1914.9,1914.6,0.00267484]
[1772015688982,0.92313054,1914.9,1914.6,0.00267484]
[1772015690176,0.001,1914.7,1914.6,0.00267484]
[1772015701707,0.92313054,1914.9,1914.6,0.00267484]
[1772015701907,0.92313054,1914.9,1914.7,0.0011]
[1772015702309,0.001,1914.8,1914.7,0.0011]
[1772015704511,0.001,1914.8,1914.6,0.03883291]
[1772015704710,0.93932966,1915.3,1914.8,0.03883291]
[1772015704910,0.93932966,1915.2,1914.9,0.81942282]
[1772015705413,0.93932966,1915.3,1915.1,0.81942282]
[1772015705585,0.93932966,1915.3,1914.9,1.78332139]
[1772015705789,0.93932966,1915.7,1915.3,0.96389857]
[1772015705982,0.001,1915.8,1915.4,1.78332139]
[1772015706189,0.001,1915.8,1915.5,0.96389857]
[1772015706190,0.94032966,1915.8,1915.5,0.96389857]
[1772015706794,0.001,1915.8,1915.6,1.78332139]
[1772015707019,0.94032966,1915.8,1915.4,0.81942282]
[1772015707196,0.94032966,1915.8,1915.4,1.78332139]
[1772015707398,0.94032966,1915.8,1915.5,0.96389857]
[1772015709015,0.001,1915.8,1915.6,0.96389857]
[1772015710921,0.001,1915.8,1915.6,1.305067]
[1772015711097,0.001,1915.9,1915.7,0.96389857]
[1772015711297,2.24404831,1916.2,1915.8,0.96389857]
[1772015712798,0.93932966,1916.1,1915.8,0.96389857]
[1772015713120,0.93932966,1915.8,1915.3,3.43591251]
[1772015713423,0.93932966,1915.8,1915.3,0.96389857]
[1772015714501,0.93932966,1915.8,1915.4,0.96389857]
[1772015715127,1.305006,1915.7,1915.4,0.96489857]
[1772015715326,1.305006,1915.7,1915.4,0.001]
[1772015715327,0.93932966,1915.6,1915.4,0.001]
[1772015716508,0.93932966,1915.5,1915.3,0.001]
[1772015719029,2.24454005,1915.4,1915.3,0.001]
[1772015720027,0.93932966,1915.4,1915.3,0.001]
[1772015721632,0.002,1915.7,1915.3,0.96489857]
[1772015721837,1.30703704,1915.7,1915.3,0.96489857]
[1772015722024,2.2463667,1915.7,1915.3,0.96489857]
[1772015723239,0.93932966,1915.6,1915.3,0.001]
[1772015723438,0.93932966,1915.4,1915.3,0.001]
[1772015729445,2.24454005,1915.4,1915.3,0.001]
[1772015738751,2.235,1915.5,1915.4,0.98601683]
[1772015740049,0.002,1915.6,1915.4,0.98601683]
[1772015740437,0.002,1915.6,1915.5,0.98601683]
[1772015740742,0.002,1915.8,1915.6,0.98601683]
[1772015742323,0.002,1915.8,1915.7,0.98601683]
[1772015745035,0.002,1916.0,1915.8,0.98601683]
[1772015745358,2.25508258,1916.0,1915.7,0.98601683]
[1772015745532,0.94827812,1915.9,1915.5,0.98601683]
[1772015745731,2.25320878,1915.9,1915.5,0.98601683]
[1772015746570,0.94827812,1915.8,1915.5,0.98601683]
[1772015747776,2.25326146,1915.8,1915.5,0.98601683]
[1772015748464,0.9273007,1915.9,1915.6,0.97882745]
[1772015748638,3.60986502,1916.0,1915.6,0.97882745]
[1772015748838,4.53716572,1916.0,1915.6,0.97882745]
[1772015750392,4.53716572,1916.0,1915.6,1.52467633]
[1772015750543,4.53716572,1916.0,1915.7,0.97882745]
[1772015750869,2.305,1916.0,1915.7,1.52467633]
[1772015751068,2.305,1916.0,1915.7,0.97882745]
[1772015751366,3.60980875,1916.0,1915.7,0.97882745]
[1772015751568,2.305,1916.0,1915.7,0.97882745]
[1772015751784,3.6098075,1916.0,1915.7,0.97882745]
[1772015753093,0.001,1915.9,1915.7,0.97882745]
[1772015754794,0.001,1915.9,1915.8,0.97882745]
[1772015755284,0.002,1916.0,1915.8,0.97882745]
[1772015757989,2.30392905,1916.3,1915.9,1.50702385]
[1772015758191,2.30392905,1916.3,1915.9,0.96117497]
[1772015762291,2.30392905,1916.3,1916.0,0.96117497]
[1772015763413,0.001,1916.4,1916.0,1.50702385]
[1772015763571,0.001,1916.4,1916.3,0.96117497]
[1772015763889,2.3048269,1916.4,1915.9,0.54584888]
[1772015764073,0.99929687,1916.2,1915.8,0.96117497]
[1772015765191,0.99929687,1916.2,1915.8,0.96217497]
[1772015765391,1.00129687,1916.2,1915.8,0.96217497]
[1772015765962,2.30598825,1916.2,1915.8,0.96217497]
[1772015771903,0.99929687,1916.1,1915.8,0.001]
[1772015773297,2.30601033,1916.2,1915.8,0.96217497]
[1772015778409,1.30671346,1916.2,1915.9,0.96117497]
[1772015778578,1.30671346,1916.2,1915.9,0.96217497]
[1772015779102,0.002,1916.1,1915.9,0.96217497]
[1772015780307,2.30576054,1916.5,1916.2,0.96117497]
[1772015782405,0.002,1916.5,1916.3,0.96117497]
[1772015782708,0.002,1916.5,1916.4,0.96117497]
[1772015783796,0.001,1916.7,1916.5,0.96117497]
[1772015783999,0.004,1916.7,1916.5,0.96117497]
[1772015784398,0.001,1916.7,1916.5,0.96117497]
[1772015785684,0.001,1916.7,1916.6,0.98558217]
[1772015786090,0.002,1916.8,1916.7,0.98558217]
[1772015786295,0.002,1916.8,1916.7,1.53143105]
[1772015786491,0.002,1916.8,1916.7,0.98558217]
[1772015786910,0.002,1917.1,1916.8,0.98558217]
[1772015787208,0.005,1917.1,1917.0,0.98558217]
[1772015787615,0.9660517,1917.1,1916.8,0.98558217]
[1772015787909,0.005,1917.1,1916.9,0.54584888]
[1772015788108,2.26476467,1917.6,1917.1,0.98558217]
[1772015788299,0.003,1917.5,1917.3,0.98558217]
[1772015789914,0.003,1917.5,1917.3,2.28949362]
[1772015790224,0.003,1917.5,1917.3,0.98558217]
[1772015790539,0.003,1917.5,1917.4,0.9531024]
[1772015791620,1.30346809,1918.0,1917.5,0.9531024]
[1772015791790,2.28568825,1918.0,1917.5,0.9531024]
[1772015793448,0.002,1917.7,1917.5,0.9531024]
[1772015794026,0.002,1917.7,1917.6,0.9531024]
[1772015794319,0.002,1917.7,1917.4,0.9531024]
[1772015795752,0.98422016,1917.7,1917.4,0.9531024]
[1772015796108,0.002,1917.7,1917.4,0.9531024]
[1772015796651,0.002,1917.7,1917.5,0.9531024]
[1772015804853,0.002,1917.7,1917.6,0.001]
[1772015811842,0.98422016,1917.7,1917.3,0.001]
[1772015814601,0.98222016,1917.5,1917.3,0.001]
[1772015815877,0.98222016,1917.5,1916.9,0.94323297]
[1772015816081,0.98222016,1917.5,1916.9,1.76020419]
[1772015816606,0.99099278,1917.3,1917.0,0.94323297]
[1772015817801,1.30383506,1917.5,1917.1,1.76020419]
[1772015818001,2.29675101,1917.6,1917.3,1.76120419]
[1772015818394,2.29675101,1917.6,1917.3,0.94423297]
[1772015819815,0.002,1917.6,1917.3,0.94423297]
[1772015820714,0.002,1917.6,1917.5,0.94323297]
[1772015821387,0.002,1917.6,1917.4,1.76020419]
[1772015821589,0.002,1917.6,1917.4,0.94323297]
[1772015829628,0.002,1917.6,1917.4,0.94423297]
[1772015829824,0.002,1917.5,1917.4,0.94423297]
[1772015831155,2.29670344,1917.7,1917.4,0.94423297]
[1772015832957,0.99099278,1917.6,1917.4,0.001]
[1772015833344,1.30378096,1917.5,1917.4,0.001]
[1772015833948,2.29475675,1917.6,1917.4,0.001]
[1772015842858,0.002,1917.5,1917.4,0.001]
[1772015843863,0.99299278,1917.5,1917.4,0.001]
[1772015846854,2.29677374,1917.5,1917.4,0.001]
[1772015849172,0.97736111,1917.4,1917.1,0.001]
[1772015849558,0.97736111,1917.4,1917.1,0.90701625]
[1772015850545,0.97736111,1917.4,1917.1,0.001]
[1772015851151,0.97736111,1917.2,1916.7,1.72298747]
[1772015851479,0.97736111,1917.2,1916.8,1.45078945]
[1772015853151,2.28139451,1917.2,1916.8,1.45078945]
[1772015853348,2.28139451,1917.2,1916.7,1.30432311]
[1772015853349,2.28139451,1917.2,1916.9,1.45078945]
[1772015853672,2.28139451,1917.2,1917.0,0.5447732]
[1772015854388,2.28139451,1917.2,1916.9,1.45078945]
[1772015855085,0.97736111,1917.3,1917.0,0.90601625]
[1772015855290,0.97736111,1917.3,1917.0,1.45078945]
[1772015855465,0.97736111,1917.3,1917.1,0.5447732]
[1772015856082,0.97736111,1917.3,1917.0,1.45078945]
[1772015857771,1.30398497,1917.2,1917.0,1.45078945]
[1772015858554,2.28134608,1917.2,1916.9,1.45178945]
[1772015858888,2.28134608,1917.2,1916.9,0.001]
[1772015858889,0.97736111,1917.1,1916.9,0.001]
[1772015859858,1.30412102,1917.0,1916.9,0.001]
[1772015860284,1.30412102,1917.0,1916.9,0.90701625]
[1772015860560,1.304104,1917.1,1916.9,0.90701625]
[1772015862097,2.28146511,1917.1,1916.8,0.5457732]
[1772015862302,2.28146511,1917.1,1916.8,1.45178945]
[1772015864807,0.97736111,1917.0,1916.6,0.001]
[1772015864993,0.97736111,1917.0,1916.6,0.90701625]
[1772015865691,0.97736111,1917.0,1916.6,1.45178945]
[1772015866814,2.28155016,1916.9,1916.6,1.45178945]
[1772015866989,1.30407806,1917.1,1916.8,1.45078945]
[1772015867188,2.28143917,1917.1,1916.9,0.5457732]
[1772015867412,2.28143917,1917.1,1916.9,0.001]
[1772015869800,2.28143917,1917.1,1916.6,0.001]
[1772015869801,0.97736111,1917.0,1916.6,0.001]
[1772015870936,0.97736111,1917.0,1916.6,0.90701625]
[1772015871427,2.28155016,1916.9,1916.6,0.001]
[1772015872539,0.97736111,1916.8,1916.6,0.001]
[1772015874629,2.2814141,1917.1,1916.7,1.45078945]
[1772015874942,0.97736111,1917.0,1916.7,1.45078945]
[1772015875426,0.97736111,1917.0,1916.7,0.90601625]
[1772015876724,1.30418905,1916.9,1916.7,1.45078945]
[1772015877131,1.30418905,1916.9,1916.7,0.90601625]
[1772015878140,0.9150854,1916.8,1916.6,0.001]
[1772015878672,1.30418905,1916.9,1916.3,0.001]
[1772015878673,0.9150854,1916.6,1916.3,0.001]
[1772015878958,0.9150854,1916.4,1916.3,0.001]
[1772015880233,0.9145854,1916.3,1916.0,0.001]
[1772015880450,0.9145854,1916.2,1916.0,0.001]
[1772015881165,2.21930931,1916.2,1916.0,0.001]
[1772015882466,2.21930931,1916.2,1916.1,0.001]
[1772015883396,0.9145854,1916.4,1916.1,0.68402183]
[1772015883583,2.21912404,1916.4,1916.1,0.68402183]
[1772015883900,2.21912404,1916.4,1916.1,0.13924863]
[1772015885795,0.9145854,1916.3,1916.1,0.001]
[1772015886295,0.9145854,1916.2,1915.9,0.001]
[1772015887275,0.9145854,1915.9,1915.7,0.001]
[1772015887978,2.21952328,1915.8,1915.7,0.001]
[1772015891393,2.21952328,1915.8,1915.5,1e-08]
[1772015891599,0.98655592,1915.7,1915.4,0.0011]
[1772015893111,2.29162962,1915.7,1915.4,0.0026663]
[1772015894105,0.98655592,1915.6,1915.4,0.0011]
[1772015895120,2.29168801,1915.6,1915.4,0.0011]
[1772015895909,2.29168801,1915.6,1915.5,0.001]
[1772015903726,0.98605592,1915.5,1915.3,0.001]
[1772015907711,2.29125803,1915.5,1915.3,0.001]
[1772015908034,2.29325803,1915.5,1915.4,0.001]
[1772015908229,0.98605592,1915.3,1915.1,0.001]
[1772015910237,2.29136592,1915.3,1915.1,0.001]
[1772015910407,0.98605592,1915.4,1915.1,0.0168054]
[1772015910607,2.29126934,1915.4,1915.1,0.0168054]
[1772015913434,0.98605592,1915.3,1915.1,0.001]
[1772015913836,2.29127399,1915.4,1915.1,0.01864236]
[1772015914039,4.99e-06,1915.4,1915.1,0.01864236]
[1772015914228,2.26231796,1915.4,1915.1,0.01864236]
[1772015915442,0.00183548,1915.7,1915.4,0.97963774]
[1772015915761,0.002,1916.1,1915.7,0.97963774]
[1772015915907,0.002,1916.4,1916.3,0.97963774]
[1772015916113,0.9590949,1916.8,1916.3,0.97963774]
[1772015916114,0.9570949,1916.8,1916.3,0.97963774]
[1772015917428,2.26131402,1916.9,1916.5,0.97963774]
[1772015917818,2.26320277,1917.1,1916.6,0.97963774]
[1772015918024,0.9590949,1917.1,1916.6,0.97963774]
[1772015918222,2.26314914,1917.1,1916.6,0.97963774]
[1772015919820,2.26314914,1917.1,1916.6,2.28400867]
[1772015920016,2.26314914,1917.1,1916.7,0.97963774]
[1772015920423,0.002,1916.8,1916.7,0.97963774]
[1772015921243,0.9590949,1916.8,1916.4,0.001]
[1772015921446,0.9590949,1916.8,1916.4,0.98063774]
[1772015922951,2.26336166,1916.8,1916.4,0.98063774]
[1772015924758,0.9590949,1916.8,1916.5,0.97963774]
[1772015925047,0.002,1916.8,1916.5,0.97963774]
[1772015925252,0.002,1916.8,1916.6,0.97963774]
[1772015928965,0.002,1916.9,1916.5,1.30443815]
[1772015929169,0.002,1916.9,1916.6,0.97963774]
[1772015932782,0.39236136,1916.8,1916.4,0.98063774]
[1772015933151,0.39236136,1916.8,1916.4,0.001]
[1772015933888,0.32623402,1916.6,1916.4,0.001]
[1772015936261,1.63066762,1916.6,1916.4,0.001]
[1772015938357,0.0777016,1916.5,1916.4,0.001]
[1772015941361,1.30443462,1916.6,1916.4,0.001]
[1772015944098,1.38213622,1916.6,1916.4,0.001]
[1772015945571,1.38213622,1916.6,1916.5,0.001]
[1772015948688,1.38378574,1917.1,1916.6,0.55385626]
[1772015948875,0.002,1917.0,1916.7,1.37158566]
[1772015949297,0.002,1917.0,1916.7,0.55385626]
[1772015952807,0.002,1917.1,1916.9,0.55385626]
[1772015954393,0.0817016,1917.1,1916.6,0.55385626]
[1772015956425,1.30412102,1917.0,1916.5,0.55485626]
[1772015956615,0.0797016,1916.9,1916.5,0.55485626]
[1772015957496,0.0797016,1916.9,1916.6,0.001]
[1772015959310,0.0797016,1916.7,1916.5,0.001]
[1772015962515,1.30439319,1916.6,1916.5,0.001]
[1772015962744,1.38309479,1916.6,1916.5,0.001]
[1772015965470,0.0787016,1916.8,1916.5,0.001]
[1772015967975,1.30432514,1916.7,1916.5,0.001]
[1772015968177,1.30430921,1916.8,1916.5,0.47217547]
[1772015969352,1.30430921,1916.8,1916.6,0.001]
[1772015969871,0.002,1916.7,1916.6,0.001]
[1772015974563,0.002,1916.7,1916.6,1.01616336]
[1772015974777,0.002,1917.0,1916.8,0.47009526]
[1772015975064,0.002,1917.0,1916.9,0.47009526]
[1772015975489,0.002,1917.1,1917.0,0.47009526]
[1772015975691,0.002,1917.3,1917.1,0.47009526]
[1772015975879,0.002,1917.5,1917.2,1.01516336]
[1772015975880,1.30578384,1917.5,1917.2,1.01516336]
[1772015976068,1.30578384,1917.5,1917.2,0.47009526]
[1772015976391,0.002,1917.5,1917.2,0.47009526]
[1772015976689,1.30578964,1917.5,1917.2,0.47009526]
[1772015979075,0.002,1917.5,1917.2,0.47009526]
[1772015980878,0.0827016,1917.5,1917.2,0.47009526]
[1772015981273,0.002,1917.5,1917.2,0.47009526]
[1772015981882,0.002,1917.4,1917.2,0.47009526]
[1772015982271,0.002,1917.4,1917.0,0.5450681]
[1772015982471,0.002,1917.4,1917.1,0.47009526]
[1772015982673,0.0827016,1917.4,1917.1,0.47009526]
[1772015983678,0.0827016,1917.4,1916.9,1.30413783]
[1772015983679,1.3865778,1917.4,1916.9,1.77423309]
[1772015983883,1.3865778,1917.4,1916.9,2.31930119]
[1772015984083,0.0807016,1917.3,1916.9,1.01516336]
[1772015984401,0.0807016,1917.3,1917.0,0.47009526]
[1772015987297,1.38461978,1917.3,1917.0,0.47009526]
[1772015987501,0.0807016,1917.3,1917.0,0.47009526]
[1772015988006,1.38461936,1917.3,1917.0,1.01516336]
[1772015989908,1.30391863,1917.3,1917.1,0.47009526]
[1772015993714,0.002,1917.2,1917.1,0.47009526]
[1772015999505,0.002,1917.2,1917.0,0.5450681]
[1772015999707,0.002,1917.2,1917.0,1.03478472]
[1772016000418,0.002,1917.2,1917.0,0.48971662]
[1772016000823,0.002,1917.2,1917.1,1.03478472]
[1772016001305,0.002,1917.3,1917.1,1.03478472]
[1772016001507,0.002,1917.3,1917.2,0.48971662]
[1772016001918,0.002,1917.4,1917.2,1.03478472]
[1772016002525,0.002,1917.4,1917.2,0.48971662]
[1772016003028,0.002,1917.4,1917.2,1.03478472]
[1772016004823,0.002,1917.7,1917.4,0.48971662]
[1772016005022,0.002,1917.7,1917.5,0.5450681]
[1772016005336,0.002,1917.7,1917.4,1.03478472]
[1772016005843,0.002,1917.7,1917.5,0.48971662]
[1772016006012,3.73026322,1917.9,1917.6,1.03478472]
[1772016006344,1.38414218,1918.1,1917.7,1.03478472]
[1772016006541,0.0807016,1918.1,1917.8,0.48971662]
[1772016006751,0.0807016,1918.1,1917.4,1.30383971]
[1772016006752,0.0807016,1918.1,1917.6,1.03478472]
[1772016007042,0.0807016,1918.1,1917.6,0.48971662]
[1772016007269,0.0807016,1917.9,1917.6,0.48971662]
[1772016008322,0.0807016,1917.9,1917.6,1.03478472]
[1772016009340,1.38412657,1918.1,1917.7,1.03478472]
[1772016009534,0.0807016,1918.1,1917.8,1.03478472]
[1772016009732,1.30336068,1918.2,1918.0,0.5450681]
[1772016009733,0.0807016,1918.2,1918.0,0.5450681]
[1772016010044,1.30331475,1918.2,1917.9,0.5450681]
[1772016010220,1.30331475,1918.2,1917.9,1.03478472]
[1772016011562,0.0807016,1918.2,1917.9,1.03478472]
[1772016013635,1.3031693,1918.4,1917.9,1.03478472]
[1772016013636,0.0807016,1918.3,1917.9,1.03478472]
[1772016015268,1.3031693,1918.4,1918.0,0.48971662]
[1772016016341,0.0807016,1918.4,1918.0,0.48971662]
[1772016017040,5.21243549,1918.5,1917.4,8.65129012]
[1772016017041,0.0807016,1918.0,1917.4,3.43591251]
[1772016017252,0.48067214,1917.9,1917.5,0.48971662]
[1772016017646,0.48067214,1917.9,1917.4,0.48971662]
[1772016018032,0.48067214,1917.9,1917.4,1.03478472]
[1772016018436,1.78423499,1917.9,1917.4,2.33862448]
[1772016018653,0.48067214,1917.8,1917.4,2.33862448]
[1772016019269,0.48067214,1917.8,1917.7,0.001]
[1772016021376,1.7841609,1918.0,1917.7,0.001]
[1772016021676,0.48067214,1917.9,1917.7,0.001]
[1772016023660,1.78420522,1917.9,1917.7,0.001]
[1772016026165,0.46089879,1917.8,1917.5,0.49104613]
[1772016026371,0.46089879,1917.7,1917.4,0.001]
[1772016026590,0.46089879,1917.5,1917.2,0.001]
[1772016028765,1.7931593,1917.4,1917.2,0.001]
[1772016029376,0.48931034,1917.3,1917.2,0.001]
[1772016030178,0.48931034,1917.3,1917.0,0.001]
[1772016030383,0.48931034,1917.3,1917.0,0.5460681]
[1772016030574,4.13814472,1917.5,1917.2,0.99488713]
[1772016030963,4.13814472,1917.5,1917.2,0.44981903]
[1772016031168,0.48931034,1917.4,1917.0,0.001]
[1772016032674,0.48931034,1917.4,1917.3,0.001]
[1772016032888,1.7931593,1917.4,1917.3,0.001]
[1772016033087,0.48931034,1917.3,1917.0,0.001]
[1772016033720,0.48931034,1917.0,1916.7,0.001]
[1772016034496,0.48931034,1916.6,1916.5,0.001]
[1772016035215,1.79377159,1916.5,1916.3,0.001]
[1772016037505,4.14069958,1916.7,1916.3,0.001]
[1772016037687,4.14069958,1916.7,1916.3,0.45181903]
[1772016037884,3.65138924,1916.7,1916.3,0.45181903]
[1772016038514,1.79359841,1916.8,1916.4,1.2686185]
[1772016039492,5.216879,1916.9,1916.4,0.81779947]
[1772016039691,1.30418905,1916.9,1916.5,0.45081903]
[1772016040512,1.79349939,1916.9,1916.5,0.45081903]
[1772016043023,0.48931034,1916.8,1916.3,0.45181903]
[1772016044610,1.30430945,1916.8,1916.4,1.2686185]
[1772016044908,1.30430945,1916.8,1916.5,0.45081903]
[1772016045505,1.30530945,1916.8,1916.5,0.45081903]
[1772016048431,1.79461979,1916.8,1916.5,0.45081903]
[1772016049554,0.48931034,1916.7,1916.4,0.0011]
[1772016049994,0.48931034,1916.4,1916.1,0.001]
[1772016050260,3.6585974,1916.3,1916.1,0.001]
[1772016050663,0.48931034,1916.2,1916.1,0.001]
[1772016050862,0.48931034,1916.2,1915.7,0.81779947]
[1772016052186,0.48931034,1916.2,1915.6,0.45191903]
[1772016053277,0.48931034,1916.0,1915.6,0.45191903]
[1772016053482,0.48931034,1916.0,1915.5,0.45191903]
[1772016054537,1.30473357,1916.1,1915.7,0.81779947]
[1772016054742,1.79404391,1916.1,1915.7,0.81779947]
[1772016055650,1.79404391,1916.1,1915.6,0.45191903]
[1772016056564,0.46799118,1916.0,1915.6,0.45191903]
[1772016056735,0.46799118,1916.0,1915.7,0.0011]
[1772016058048,1.77281718,1916.0,1915.7,0.0011]
[1772016060837,0.46799118,1915.9,1915.7,0.0011]
[1772016061962,0.46799118,1915.9,1915.5,0.0011]
[1772016062163,0.46799118,1915.8,1915.5,0.0011]
[1772016062467,0.46799118,1915.7,1915.5,0.0011]
[1772016063248,1.30498785,1915.8,1915.5,0.0011]
[1772016063449,1.77297903,1915.8,1915.5,0.0011]
[1772016063678,0.46799118,1915.7,1915.5,0.0011]
[1772016069056,1.7729295,1915.8,1915.6,0.0011]
[1772016069251,1.30493832,1915.8,1915.6,0.45301903]
[1772016069763,1.30493832,1915.8,1915.6,0.0011]
[1772016069964,1.7729295,1915.8,1915.6,0.0011]
[1772016072267,1.30493832,1915.8,1915.6,0.0011]
[1772016072574,1.30493832,1915.8,1915.6,0.45301903]
[1772016077168,1.30493832,1915.8,1915.6,0.0011]
[1772016078686,1.7729295,1915.8,1915.6,0.0011]
[1772016080465,0.49945,1915.6,1915.2,0.0011]
[1772016081069,1.30514226,1915.5,1915.2,0.0011]
[1772016081583,0.49945,1915.6,1915.3,0.0022]
[1772016083380,1.80452648,1915.6,1915.3,0.0022]
[1772016083561,0.49945,1915.6,1915.3,0.0022]
[1772016085284,0.001,1915.7,1915.5,0.0011]
[1772016086690,0.50045,1915.7,1915.3,1.306337]
[1772016086879,0.50045,1915.7,1915.3,0.0022]
[1772016087077,0.50045,1915.7,1915.3,0.0011]
[1772016087278,0.50045,1915.7,1915.4,0.0011]
[1772016087586,0.001,1915.7,1915.4,0.0011]
[1772016087969,1.30600936,1915.7,1915.4,0.0011]
[1772016088293,1.80545936,1915.7,1915.4,0.0011]
[1772016093198,1.80545936,1915.7,1915.4,0.0022]
[1772016093501,0.001,1915.6,1915.4,0.0022]
[1772016094082,0.001,1915.6,1915.5,0.0011]
[1772016096191,0.50045,1915.6,1915.4,0.0011]
[1772016096690,0.001,1915.6,1915.4,0.0022]
[1772016097607,0.001,1915.6,1915.4,0.0011]
[1772016097810,0.49945,1915.5,1915.3,0.0011]
[1772016098191,1.30521039,1915.4,1915.3,0.0011]
[1772016098609,5.72006397,1915.5,1915.3,0.0011]
[1772016098806,0.49945,1915.5,1915.3,0.0011]
[1772016099512,1.80459801,1915.5,1915.3,0.0011]
[1772016102226,0.49945,1915.5,1915.3,0.0011]
[1772016102405,0.50045,1915.6,1915.3,0.54785447]
[1772016102807,1.805531,1915.6,1915.3,0.0022]
[1772016103107,0.50045,1915.6,1915.3,0.0022]
[1772016103829,0.001,1915.6,1915.4,0.0011]
[1772016104009,0.001,1915.7,1915.6,0.0011]
[1772016104412,0.001,1915.7,1915.5,0.54675447]
[1772016104607,0.001,1915.7,1915.6,0.54565447]
[1772016104814,3.672851,1916.0,1915.7,0.0011]
[1772016105124,1.304851,1916.0,1915.7,0.54675447]
[1772016105735,0.001,1916.1,1915.9,0.54675447]
[1772016106107,0.001,1916.1,1915.9,0.0011]
[1772016108918,0.001,1916.1,1915.7,0.54675447]
[1772016108919,0.49945,1916.0,1915.7,0.54675447]
[1772016109633,0.49945,1916.0,1915.6,0.54675447]
[1772016110134,0.49945,1916.0,1915.7,0.54565447]
[1772016111003,0.49945,1915.9,1915.7,0.54565447]
[1772016111214,0.49945,1915.9,1915.6,0.54675447]
[1772016111909,0.49945,1915.9,1915.7,0.54565447]
[1772016115426,1.80523116,1916.1,1915.8,0.54565447]
[1772016115628,1.80523116,1916.1,1915.9,0.54565447]
[1772016115816,0.50045,1916.1,1915.9,0.54565447]
[1772016117047,1.80518591,1916.1,1915.9,0.54565447]
[1772016117856,0.50045,1916.1,1915.9,0.54565447]
[1772016118152,0.001,1916.0,1915.9,0.54565447]
[1772016119641,0.001,1916.0,1915.8,0.54785447]
[1772016120045,0.001,1916.0,1915.9,0.0011]
[1772016120353,0.001,1916.0,1915.8,0.54785447]
[1772016120553,0.001,1916.0,1915.9,0.0011]
[1772016121027,0.001,1916.0,1915.8,0.54785447]
[1772016121227,0.001,1916.0,1915.9,0.54565447]
[1772016122654,0.49945,1916.2,1915.9,1.85162424]
[1772016122819,0.4957107,1916.1,1915.8,0.0011]
[1772016124947,0.4957107,1915.9,1915.8,0.0011]
[1772016128349,0.4957107,1916.1,1915.8,0.0011]
[1772016130559,1.30480167,1916.0,1915.9,0.0011]
[1772016132062,1.80044427,1916.1,1915.9,0.0011]
[1772016138470,0.4957107,1916.2,1915.9,0.46824454]
[1772016140469,1.80044427,1916.1,1915.9,0.0011]
[1772016140973,1.80037618,1916.2,1915.9,0.46824454]
[1772016141771,0.4957107,1916.1,1915.9,0.0011]
[1772016142364,0.4967107,1916.1,1915.9,0.0011]
[1772016142870,0.001,1916.1,1915.9,0.46824454]
[1772016143171,1.30573527,1916.1,1915.9,0.46824454]
[1772016143947,1.80144597,1916.1,1915.9,0.0011]
[1772016150378,0.4967107,1916.1,1915.9,0.0011]
[1772016152473,1.80145758,1916.1,1915.9,0.0011]
[1772016154565,1.80145758,1916.1,1916.0,0.0011]
[1772016155262,0.4967107,1916.1,1916.0,0.0011]
[1772016157687,0.001,1916.1,1916.0,0.0011]
[1772016169001,0.4974255,1916.1,1916.0,0.0011]
[1772016169298,0.4974255,1916.1,1915.9,0.0011]
[1772016177904,1.80215907,1916.1,1916.0,0.0011]
[1772016180246,0.46177463,1916.0,1915.4,0.0011]
[1772016180439,3.69273357,1916.1,1915.4,0.0011]
[1772016180440,0.5,1915.8,1915.4,0.0011]
[1772016180593,2.388,1916.1,1915.5,0.81814173]
[1772016180796,3.69275486,1916.1,1915.5,0.81814173]
[1772016182632,4.19275486,1916.1,1915.5,2.12323671]
[1772016183196,3.69275331,1916.1,1915.7,0.81814173]
[1772016185036,1.30575331,1916.1,1915.7,2.12314709]
[1772016185236,1.30575331,1916.1,1915.7,0.81814173]
[1772016189716,1.80575331,1916.1,1915.8,0.0011]
[1772016190109,0.001,1916.0,1915.8,0.0011]
[1772016198860,0.001,1916.1,1915.8,0.0011]
[1772016199967,2.39,1916.3,1915.9,0.81814173]
[1772016201974,2.89,1916.3,1915.9,0.81814173]
[1772016202274,2.89,1916.3,1915.9,2.12297034]
[1772016202473,0.001,1916.0,1915.9,2.12297034]
[1772016202641,2.89,1916.3,1915.9,2.12297034]
[1772016205252,2.39,1916.3,1915.9,2.12297034]
[1772016205448,5.21772389,1916.6,1915.9,2.12297034]
[1772016205449,0.5,1916.4,1915.9,2.12297034]
[1772016206982,1.80444008,1916.6,1915.9,2.12297034]
[1772016207188,0.5,1916.6,1916.2,0.81814173]
[1772016207488,1.80439468,1916.6,1916.2,0.81814173]
[1772016207658,1.30529211,1916.8,1916.2,2.12280071]
[1772016207858,0.5,1916.7,1916.2,2.12280071]
[1772016210094,0.5,1916.6,1916.2,2.12280071]
[1772016212568,1.80439678,1916.6,1916.2,0.81814173]
[1772016214086,0.001,1916.5,1916.2,0.81814173]
[1772016214287,0.501,1916.5,1916.2,0.81814173]
[1772016218214,0.001,1916.5,1916.2,2.12277317]
[1772016218512,0.501,1916.5,1916.2,2.12277317]
[1772016219318,0.501,1916.5,1916.3,0.5451038]
[1772016221535,0.501,1916.5,1916.2,0.5451038]
[1772016225235,0.451,1916.5,1916.2,1.89874531]
[1772016226508,0.451,1916.5,1916.3,0.5451038]
[1772016226709,0.002,1916.4,1916.3,0.5451038]
[1772016231236,0.002,1916.4,1916.2,1.89874531]
[1772016232941,0.002,1916.4,1916.2,0.049]
[1772016233438,0.002,1916.4,1916.2,0.5941038]
[1772016233610,0.002,1916.4,1916.2,1.8987395]
[1772016234238,0.453,1916.5,1916.3,0.5451038]
[1772016234448,0.002,1916.7,1916.4,1.02837796]
[1772016234642,0.45369686,1916.8,1916.2,1.3046357]
[1772016234643,0.001,1916.8,1916.6,0.5451038]
[1772016236046,0.45269686,1916.9,1916.6,1.03766949]
[1772016236254,0.45269686,1916.9,1916.7,0.5451038]
[1772016236418,0.45269686,1916.9,1916.6,1.03766949]
[1772016237045,0.45223655,1916.8,1916.5,0.5451038]